[Event "Match Kovalenko-Kravtsiv Blitz 2025"]
[Site "Lviv"]
[Date "2025.03.21"]
[Round "6.1"]
[White "Kravtsiv, Martyn"]
[Black "Kovalenko, Igor"]
[Result "1-0"]
[Annotator "TA"]
[ECO "B01"]
[WhiteElo "2598"]
[BlackElo "2674"]
[PlyCount "117"]
[EventDate "2025.03.17"]
[EventType "match"]
[EventCountry "UKR"]
[SourceTitle "playchess.com"]
[Source "ChessBase"]
[SourceQuality "1"]
[TimeControl "180+2"]

{[%evp 24,117,30,38,23,20,32,-23,35,20,22,13,21,-14,22,0,63,47,55,55,80,42,27,0,8,0,0,0,0,0,0,0,71,71,83,86,421,353,431,429,402,410,356,254,368,376,398,315,312,304,266,252,256,173,177,118,246,63,91,94,77,30,46,0,0,0,103,92,367,352,833,833,821,809,770,794,29998,787,764,731,840,814,833,797,923,681,1057,961,1038,837,1077,937,876,835,29995,29996]} 1. e4 {[%emt 0:00:01]} d5 {[%emt 0:00:00]} 2. exd5 {[%emt 0:00:01]} Qxd5 {[%emt 0:00:01]} 3. Nc3 {[%emt 0:00:01]} Qa5 {[%emt 0:00:01]} 4. d4 {[%emt 0:00:02]} Nf6 {[%emt 0:00:01]} 5. Nf3 {[%emt 0:00:02]} c6 {[%emt 0:00:00]} 6. Bc4 {[%emt 0:00:01]} Bf5 {[%emt 0:00:01]} 7. Bd2 {[%emt 0:00:02]} Nbd7 {[%emt 0:00:01]} 8. Qe2 {[%emt 0:00:14]} Qc7 {[%emt 0:00:01]} 9. O-O-O {[%emt 0:00:07]} e6 {[%emt 0:00:00]} 10. Nh4 {[%emt 0:00:03]} Bg6 {[%emt 0:00:01]} 11. Nxg6 {[%emt 0:00:23]} hxg6 {[%emt 0:00:01]} 12. h3 {[%emt 0:00:12]} O-O-O {[%emt 0:00:10]} 13. Bb3 {[%emt 0:00:11]} Nb6 {[%emt 0:00:10] B01: Scandinavian Defence.} 14. Be3 {[%emt 0:00:05]} Bb4 {[%emt 0:00:11]} 15. Kb1 $146 {[%emt 0:00:10]} (15. Na4 $14) (15. Rd3 Rh5 16. Bd2 Rh4 17. Be3 Bxc3 18. Rxc3 Nbd5 19. Bxd5 Nxd5 20. Ra3 Nxe3 21. fxe3 {0-1 Meireles,A (1635)-Montes Gutierrez,I (2154) Mondariz Balneario op 9th 2009 (3)}) 15... Kb8 {[%emt 0:00:44]} (15... Bxc3 $11 16. bxc3 Ne4) 16. Rd3 {[%emt 0:00:02]} Ka8 {[%emt 0:00:04]} 17. a3 {[%emt 0:00:05]} Bxc3 {[%emt 0:00:01]} 18. bxc3 {[%emt 0:00:07]} Rh5 {[%emt 0:00:05]} 19. c4 {[%emt 0:00:07]} Ra5 {[%emt 0:00:06]} (19... c5 $11) 20. Bc1 {[%emt 0:00:40]} c5 {[%emt 0:00:11]} 21. Qe5 {[%emt 0:00:24]} Qc8 {[%emt 0:00:31]} 22. Qe1 {[%emt 0:00:02]} Ra6 {[%emt 0:00:07]} 23. dxc5 {[%emt 0:00:01]} Nbd7 {[%emt 0:00:09]} 24. Qb4 {[%emt 0:00:05]} Rh8 {[%emt 0:00:28]} 25. Be3 $36 {[%emt 0:00:07][%mdl 2048] Black is under pressure.} Ne5 {[%emt 0:00:16]} 26. Rd6 {[%emt 0:00:04] [#]} Nc6 {[%emt 0:00:01]} 27. Qc3 {[%emt 0:00:18]} Ne4 {[%emt 0:00:15]} (27... Rxa3 $11 {keeps the balance.} 28. Rhd1 Qc7) 28. Qxg7 $16 {[%emt 0:00:01]} Nxd6 {[%emt 0:00:02]} 29. cxd6 {[%emt 0:00:02][%csl Od6] White has a strong passed pawn} Na5 $2 {[%emt 0:00:11][%mdl 8192] Black is weak on the dark squares} (29... Rd8 $16 {is more resistant.}) 30. d7 $18 {[%emt 0:00:04]} (30. Qxf7 Rxd6 31. c5 (31. Qxg6 Nxc4 32. Qe4 Nd2+ 33. Bxd2 Rxd2 $11) 31... Nxb3 32. cxb3 (32. cxd6 Qc3 $11) 32... Rd3 $14) 30... Qg8 {[%emt 0:00:07] [#]} 31. Rd1 $1 {[%emt 0:00:01] Qxg8+ would kill now.} Nc6 {[%emt 0:00:02]} 32. Qf6 {[%emt 0:00:09]} Ra5 {[%emt 0:00:02]} 33. Bg5 {[%emt 0:00:05]} Rxg5 {[%emt 0:00:02]} (33... Rf5) 34. Qxg5 {[%emt 0:00:01]} Qb8 {[%emt 0:00:02]} 35. Ba4 {[%emt 0:00:02]} Nd8 {[%emt 0:00:01]} 36. Qf6 {[%emt 0:00:06]} Rh5 {[%emt 0:00:02]} 37. g4 {[%emt 0:00:02] Dodges Rf5} Rxh3 {[%emt 0:00:01]} 38. f4 {[%emt 0:00:03]} Qc7 {[%emt 0:00:04]} 39. Bb3 {[%emt 0:00:03]} (39. Kb2 $18) 39... a5 {[%emt 0:00:01]} (39... Rf3 $16) 40. f5 $2 {[%emt 0:00:01]} (40. c5 $18) 40... gxf5 {[%emt 0:00:01]} 41. gxf5 {[%emt 0:00:01]} Rf3 {[%emt 0:00:01]} 42. Qe7 {[%emt 0:00:02] White is more active.} ({Better is} 42. Qh8 $16) 42... Rxf5 $11 {[%emt 0:00:02]} 43. Rh1 {[%emt 0:00:01]} (43. Rd4 $14 {is more appropriate.}) 43... Ka7 {[%emt 0:00:01]} (43... Nc6 $2 44. Qe8+ (44. Rh8+ Ka7 $16) 44... Ka7 45. Ka2 $18) 44. Ka2 {[%emt 0:00:04]} Nc6 {[%emt 0:00:04]} (44... Rf4 $11) 45. Qe8 $16 {[%emt 0:00:03] Rh8 would now be deadly.} Rf2 $2 {[%emt 0:00:06][%mdl 8192]} (45... Nd8 $16 {is a better defense.} 46. Rh8 a4 47. Bxa4 (47. Qxd8 axb3+ 48. Kxb3 Rf3+ 49. c3 Qxd8 $16) 47... Rf2 48. Qxd8 Qxc4+ 49. Kb1 Rf1+ 50. Kb2 Qd4+ 51. c3 (51. Kb3 $2 {is a self mate.} Rb1+ 52. Ka2 Qb2#) 51... Rf2+ 52. Bc2 Rxc2+ 53. Kxc2 Qe4+ 54. Kd2 (54. Kb3 Qb1+ 55. Kc4 Qe4+ 56. Kb3 Qb1+ 57. Ka4 Qe4+ 58. Ka5 Qd5+ 59. Kb4 Qd6+ 60. Kc4 Qd5+ 61. Kb4 Qd6+ 62. Kc4 Qd5+ 63. Kb4 $11) 54... Qf4+ 55. Ke2 Qe4+ 56. Kf2 Qf5+ 57. Ke3 Qe5+ 58. Kf2 Qf4+ 59. Ke2) 46. Rh8 $18 {[%emt 0:00:01]} Rd2 $2 {[%emt 0:00:00]} (46... a4 47. Qa8+ (47. d8=N axb3+ 48. Kb2 Qe5+ 49. Kxb3 Rf3+ 50. Ka2 Rxa3+ 51. Kxa3 Qc3+ 52. Ka2 Nb4+ 53. Kb1 Qxc2+ 54. Ka1 Qc1#) (47. Bxa4 Nd8 $18) 47... Kb6 48. Qxa4 Qxd7) 47. c5 {[%emt 0:00:03]} ({Worse is} 47. Qxf7 Qxd7 48. Qxd7 Rxd7 $11) 47... Nb8 {[%emt 0:00:02]} 48. d8=Q Rxd8 {[%emt 0:00:01]} 49. Qxd8 {[%emt 0:00:04]} Qe5 {[%emt 0:00:02]} 50. Rh3 {[%emt 0:00:03]} (50. Qxa5+ $142 Na6 51. Qb6#) 50... Qxc5 {[%emt 0:00:01]} 51. Qd2 {[%emt 0:00:01]} Qc7 {[%emt 0:00:01]} 52. Qe3+ {[%emt 0:00:01]} Ka8 {[%emt 0:00:01]} 53. Rf3 {[%emt 0:00:00]} f5 {[%emt 0:00:00]} 54. Qf4 {[%emt 0:00:01]} Qb6 {[%emt 0:00:01]} 55. Rd3 {[%emt 0:00:01]} Nc6 {[%emt 0:00:01]} 56. Qd6 {[%emt 0:00:02]} Qb5 {[%emt 0:00:01]} 57. Qf8+ {[%emt 0:00:02]} Ka7 {[%emt 0:00:00]} 58. Bxe6 {[%emt 0:00:04]} Qc5 {[%emt 0:00:02]} 59. Qxc5+ {[%emt 0:00:04] Weighted Error Value: White=0.48/Black=0.76  Loses game:     	---       	Black=2      Missed win:     	White=1     	---        Mistake:       	White=4     	Black=7      Inaccurate:     	White=3     	Black=2      OK:         	White=8     	Black=12     Best:        	White=4     	Black=4} 1-0

[Event "Match Kovalenko-Kravtsiv Blitz 2025"]
[Site "Lviv"]
[Date "2025.03.21"]
[Round "7.1"]
[White "Kovalenko, Igor"]
[Black "Kravtsiv, Martyn"]
[Result "1/2-1/2"]
[Annotator "TA"]
[ECO "D35"]
[WhiteElo "2674"]
[BlackElo "2598"]
[PlyCount "123"]
[EventDate "2025.03.17"]
[EventType "match"]
[EventCountry "UKR"]
[SourceTitle "playchess.com"]
[Source "ChessBase"]
[SourceQuality "1"]
[TimeControl "180+2"]

{[%evp 15,123,2,6,-17,-9,-22,-14,-20,-12,-28,-28,-35,-20,-20,-11,-10,-10,-23,-26,-21,-17,-25,-18,-22,-11,-6,0,-7,0,-4,0,0,0,0,0,-7,18,0,0,0,0,-12,-25,-41,-6,-4,0,-11,15,0,-3,-17,28,0,0,0,0,0,0,-41,0,0,0,-68,-18,-237,-253,-253,-252,-259,-235,-231,-237,-321,-324,-380,-303,-289,-297,-366,-316,-308,-127,-123,-59,-59,0,-621,-623,-605,-591,-570,-566,-517,0,0,0,-485,-450,-422,-306,-409,0,-306,0,-396,0,-306,0,-343]} 1. c4 {[%emt 0:00:01]} e6 {[%emt 0:00:01]} 2. d4 {[%emt 0:00:00]} d5 {[%emt 0:00:00]} 3. Nc3 {[%emt 0:00:01]} Nf6 {[%emt 0:00:01]} 4. cxd5 {[%emt 0:00:00]} exd5 {[%emt 0:00:01]} 5. Bg5 {[%emt 0:00:01]} Be7 {[%emt 0:00:01]} 6. e3 {[%emt 0:00:01]} O-O {[%emt 0:00:02]} 7. Bd3 {[%emt 0:00:01]} h6 {[%emt 0:00:02] Recently 7...Re8 got a lot of attention.} 8. Bxf6 {[%emt 0:00:01]} Bxf6 {[%emt 0:00:02]} 9. Nge2 {[%emt 0:00:01] D53: Queen's Gambit Declined: 4 Bg5 Be7: Early deviations.} a5 {[%emt 0:00:05]} 10. O-O {[%emt 0:00:05]} c6 {[%emt 0:00:01]} 11. a3 {[%emt 0:00:00]} Be7 {[%emt 0:00:03]} 12. Rb1 {[%emt 0:00:09]} Nd7 $146 {[%emt 0:00:10]} (12... Na6 13. Bc2 Bd6 14. Qd3 f5 15. Ng3 Be6 16. Nce2 Qh4 17. Rfe1 Rae8 18. Nf1 Nc7 {0-1 Buscar,M (2041)-Khamdamova,A (2291) Titled Tuesday intern op 25th Jun Early blitz 2024 (2)}) 13. Qc2 {[%emt 0:00:04]} Nf6 {[%emt 0:00:12]} 14. Ng3 {[%emt 0:00:11]} Bd6 {[%emt 0:00:04]} 15. Rfe1 {[%emt 0:00:04]} Re8 {[%emt 0:00:02]} 16. Na4 {[%emt 0:00:17]} Ng4 {[%emt 0:00:31]} 17. Nf1 {[%emt 0:00:07]} Rb8 {[%emt 0:00:44]} 18. Bh7+ {[%emt 0:00:16]} Kh8 {[%emt 0:00:06]} 19. Bf5 {[%emt 0:00:01]} Nf6 {[%emt 0:00:15]} 20. Bxc8 {[%emt 0:00:25]} Qxc8 {[%emt 0:00:02]} 21. b4 {[%emt 0:00:02]} b5 {[%emt 0:00:02]} 22. Nc5 {[%emt 0:00:04]} Ra8 {[%emt 0:00:03]} 23. Nd3 {[%emt 0:00:19]} Ra6 {[%emt 0:00:11]} 24. Rec1 {[%emt 0:00:01]} axb4 {[%emt 0:00:11]} 25. axb4 {[%emt 0:00:05]} Qa8 {[%emt 0:00:26]} 26. Rb2 {[%emt 0:00:16]} Ne4 {[%emt 0:00:03]} 27. Qd1 {[%emt 0:00:41]} Re6 {[%emt 0:00:07]} 28. f3 {[%emt 0:00:10]} Nf6 {[%emt 0:00:03][%cal Be4f6,Bf6e8,Be8d6,Bd6c4][%mdl 32]} 29. Rbc2 {[%emt 0:00:01]} Bf8 {[%emt 0:00:10]} 30. Ne5 {[%emt 0:00:07]} Qb7 {[%emt 0:00:12]} 31. Qe1 {[%emt 0:00:03]} Ne8 {[%emt 0:00:01]} 32. h4 {[%emt 0:00:09]} Kg8 {[%emt 0:00:01]} 33. h5 {[%emt 0:00:01]} f6 {[%emt 0:00:02]} 34. Ng6 {[%emt 0:00:01]} Nd6 {[%emt 0:00:01]} 35. Ng3 {[%emt 0:00:03]} Qd7 {[%emt 0:00:06]} 36. Re2 {[%emt 0:00:05]} Re8 {[%emt 0:00:03]} 37. Ra1 {[%emt 0:00:04]} Rxa1 {[%emt 0:00:02]} 38. Qxa1 {[%emt 0:00:00]} Nc4 {[%emt 0:00:01][%csl LRb4,LRe3]} 39. Qc3 {[%emt 0:00:02]} (39. Qb1 $11) 39... Bd6 {[%emt 0:00:01]} (39... Qd6 $15 40. Nxf8 Qxg3) 40. Nf4 $2 {[%emt 0:00:18] [#]} (40. Kf2 $11 {and White stays safe.}) 40... Rxe3 $1 $19 {[%emt 0:00:04][%mdl 512]} 41. Rxe3 {[%emt 0:00:02]} Bxf4 {[%emt 0:00:00]} 42. Nf1 {[%emt 0:00:00][%cal Bg3f1,Bf1e3,Be3g4,Bg4f2][%mdl 32]} Bxe3+ {[%emt 0:00:04]} 43. Nxe3 {[%emt 0:00:01][%mdl 4096] Endgame KQN-KQN. Black is a pawn up.} Qe8 {[%emt 0:00:01][%csl LRe3,LRh5]} 44. Ng4 {[%emt 0:00:03]} Qxh5 {[%emt 0:00:02]} 45. Qe1 {[%emt 0:00:02]} Qf7 {[%emt 0:00:02] Prevents Qe6} 46. Nf2 {[%emt 0:00:02]} Kf8 {[%emt 0:00:02]} 47. Qa1 {[%emt 0:00:03]} Qe7 {[%emt 0:00:02]} 48. Qa8+ {[%emt 0:00:01]} Kf7 {[%emt 0:00:01]} (48... Qe8 $19 {has better winning chances.} 49. Qa1 Kg8) 49. Qxc6 $17 {[%emt 0:00:03]} Qe1+ {[%emt 0:00:01]} ({But not} 49... Qxb4 $6 50. Qxd5+ Ke7 51. Qb7+ Kd8 52. Qa8+ Ke7 53. Qb7+ Kf8 54. Qa8+ Ke7 55. Qb7+ $11) (49... Kg6 $1 $17 {and ...Qe1+ should not be overlooked} 50. Nh3 Qe3+ (50... Qxb4 51. Nf4+ Kh7 52. Qxd5 $11) 51. Kh2 Qxd4 52. Qxd5 Qxd5 53. Nf4+ Kf5 54. Nxd5 Nd6) 50. Kh2 $15 {[%emt 0:00:00]} Qxf2 {[%emt 0:00:01]} (50... Kg6 $15 51. Nh3 Ne3 (51... Qxb4 52. Nf4+ Kh7 53. Qxd5 $11) 52. Qxb5 Kh7 (52... Nf1+ 53. Kg1 $17)) 51. Qxd5+ $2 {[%emt 0:00:01][%mdl 8192] [#]} (51. Qd7+ $11 Kf8 52. Qd8+ Kf7 53. Qd7+) 51... Kg6 $1 $19 {[%emt 0:00:02]} 52. Qe4+ {[%emt 0:00:00] [#]} f5 $1 {[%emt 0:00:03]} 53. Qe6+ {[%emt 0:00:01]} Kg5 {[%emt 0:00:08][%cal Oc4e3] ( -> ...Ne3!)} 54. Qe7+ {[%emt 0:00:02]} Kg6 $2 {[%emt 0:00:03]} (54... Kf4 $19 55. Qxg7 Qh4+ 56. Kg1 Ke3) 55. Qe6+ $11 {[%emt 0:00:01]} Kg5 $2 {[%emt 0:00:00][%mdl 8192]} (55... Kh7 $11 56. Qxf5+ Kg8 57. Qe6+ Kf8 58. Qc8+ Kf7 59. Qd7+ Kf8 60. Qf5+ Ke7 (60... Kg8 61. Qd5+ Kf8 62. Qd8+ Kf7 63. Qd7+ Kg6 64. Qe6+ Kg5 65. Qd5+ Kf4 66. Qe4+ Kg5 67. Qg4+ Kf6 68. Qf4+ Ke6 69. Qe4+ Kd6 70. Qg6+ Ke7 71. Qxg7+ Kd8 72. Qf6+ Kd7 73. Qf5+ Kc7 74. Qc5+ Kd8 75. Qd5+ Kc7 76. Qf7+ Kd6 77. Qg6+ Kc7 78. Qf7+ Kd8 79. Qf8+ Kc7 80. Qc5+ Kd8 81. Qf8+ Kc7 82. Qc5+ $11) 61. Qe4+ Kf6 62. Qc6+ Ke7 63. Qe4+) 56. Qe7+ $19 {[%emt 0:00:00]} Kh5 {[%emt 0:00:02] ( -> ...Ne3)} 57. Qxg7 {[%emt 0:00:02]} Qh4+ {[%emt 0:00:01]} 58. Kg1 {[%emt 0:00:00][%cal Og2g4]} Qe1+ {[%emt 0:00:01]} 59. Kh2 {[%emt 0:00:01]} Qh4+ {[%emt 0:00:02]} (59... Qxb4 60. g4+ fxg4 61. Qxg4#) 60. Kg1 {[%emt 0:00:00][%cal Og2g4] And now g4+! would win.} Qe1+ {[%emt 0:00:05]} 61. Kh2 {[%emt 0:00:01] White threatens g4+ and mate.} Qh4+ {[%emt 0:00:03]} ({Inferior is} 61... Qxb4 62. g4+ fxg4 63. Qxg4#) 62. Kg1 {[%emt 0:00:06][%mdl 32768] Weighted Error Value: White=0.32/Black=0.61 An unexpected result.  Loses game:     	White=6     	---        Missed win:     	---       	Black=2      Mistake:       	White=1     	Black=4      Inaccurate:     	White=4     	Black=4      OK:         	White=18    	Black=18     Best:        	White=3     	---        Strong:       	---       	Black=1      Brilliant:      	---       	Black=1} 1/2-1/2

[Event "Match Kovalenko-Kravtsiv Blitz 2025"]
[Site "Lviv"]
[Date "2025.03.21"]
[Round "8.1"]
[White "Kravtsiv, Martyn"]
[Black "Kovalenko, Igor"]
[Result "1-0"]
[Annotator "TA"]
[ECO "B01"]
[WhiteElo "2598"]
[BlackElo "2674"]
[PlyCount "100"]
[EventDate "2025.03.17"]
[EventType "match"]
[EventCountry "UKR"]
[SourceTitle "playchess.com"]
[Source "ChessBase"]
[SourceQuality "1"]
[TimeControl "180+2"]

{[%evp 19,100,47,52,32,41,4,17,-34,-33,-37,-38,-95,-102,-89,-101,-148,-59,-59,-43,-37,0,10,5,4,39,37,29,36,137,122,157,160,138,52,172,0,0,0,0,0,0,0,0,0,7,7,34,21,21,22,46,16,17,0,17,20,21,18,43,51,49,-200,0,0,0,0,192,181,414,320,342,305,408,293,29966,5397,29968,29969,29968,29963,29943,5118,5106]} 1. e4 {[%emt 0:00:01]} d5 {[%emt 0:00:01]} 2. exd5 {[%emt 0:00:01]} Qxd5 {[%emt 0:00:01]} 3. Nc3 {[%emt 0:00:01]} Qa5 {[%emt 0:00:00]} 4. Nf3 {[%emt 0:00:04]} Nf6 {[%emt 0:00:01]} 5. d4 {[%emt 0:00:02]} c6 {[%emt 0:00:01]} 6. Bc4 {[%emt 0:00:01]} Bf5 {[%emt 0:00:01]} 7. Bd2 {[%emt 0:00:02]} Nbd7 {[%emt 0:00:01]} 8. Qe2 {[%emt 0:00:02]} Qc7 {[%emt 0:00:01]} 9. O-O-O {[%emt 0:00:04]} e6 {[%emt 0:00:00]} 10. Nh4 {[%emt 0:00:05]} Bg6 {[%emt 0:00:01]} 11. g3 $5 {[%emt 0:00:24][%mdl 4] A promising side line. B01: Scandinavian Defence.} O-O-O {[%emt 0:00:27]} 12. Kb1 $5 $146 {[%emt 0:00:02][%mdl 8] New and interesting.} ({Predecessor:} 12. Nxg6 hxg6 13. h4 Nb6 14. Bb3 Rxd4 15. Bf4 Rxf4 16. gxf4 Qxf4+ 17. Kb1 Bc5 18. f3 Rxh4 19. Rxh4 Qxh4 20. Ne4 Nxe4 21. fxe4 {0-1 Mosadeghpour,M (2473)-Tahbaz,A (2423) Rasht Father Cup Rapid 2nd 2023 (9)}) 12... Nb6 {[%emt 0:00:01]} 13. Bb3 {[%emt 0:00:06]} (13. Bg5 $11) 13... Bh5 {[%emt 0:00:10]} 14. f3 {[%emt 0:00:01]} Rxd4 {[%emt 0:00:46]} 15. Bf4 {[%emt 0:00:43]} ({Only move:} 15. Ng2 $1 $15) 15... Rxf4 $1 $17 {[%emt 0:00:01]} 16. gxf4 {[%emt 0:00:02]} Qxf4 {[%emt 0:00:01]} 17. Qf2 {[%emt 0:00:10]} (17. Qe1 $142) 17... Bb4 {[%emt 0:00:43]} (17... g5 $17 18. Ng2 Qxf3) 18. Ne2 $15 {[%emt 0:00:02]} Qe5 {[%emt 0:00:18]} 19. Ng3 {[%emt 0:00:02]} Bg6 {[%emt 0:00:05]} (19... Bc5 $15 {should be considered.} 20. Qd2 Be7) 20. f4 $36 {[%emt 0:00:14][%mdl 2048] White has some pressure.} Qc5 {[%emt 0:00:02]} 21. Qf3 {[%emt 0:00:08]} Nbd5 {[%emt 0:00:20]} 22. f5 {[%emt 0:00:03]} exf5 {[%emt 0:00:01]} 23. Nhxf5 {[%emt 0:00:01]} Rg8 {[%emt 0:00:11]} (23... Kb8 $14) 24. a3 {[%emt 0:00:04]} Ba5 {[%emt 0:00:02]} 25. Bxd5 $1 {[%emt 0:00:04]} Nxd5 {[%emt 0:00:03]} 26. h4 {[%emt 0:00:29]} (26. Ne4 $16 Qb6 (26... Nc3+ 27. Qxc3 Qxf5 28. Nd6+ Kb8 29. Nxf5 $18) 27. Ka1) 26... h5 {[%emt 0:00:08] [#]} (26... Kb8 $1 $14) 27. Rxd5 $2 {[%emt 0:00:07]} cxd5 {[%emt 0:00:01]} 28. b4 {[%emt 0:00:00] Chess con chili. Active counter play!} (28. Nxh5 {simplifies} Bxh5 29. Qxh5 g6 30. Qg4) 28... Bxb4 {[%emt 0:00:04]} 29. axb4 {[%emt 0:00:01]} Qxb4+ {[%emt 0:00:01]} 30. Qb3 {[%emt 0:00:02]} Qxb3+ {[%emt 0:00:01]} 31. cxb3 {[%emt 0:00:01]} Kc7 {[%emt 0:00:03]} 32. Kb2 {[%emt 0:00:03]} Re8 {[%emt 0:00:06]} 33. Rc1+ {[%emt 0:00:03]} Kb6 {[%emt 0:00:01]} 34. Nxg7 {[%emt 0:00:07]} Re3 35. Rc3 {[%emt 0:00:09]} Re5 {[%emt 0:00:05]} 36. Rf3 {[%emt 0:00:02]} Kc5 {[%emt 0:00:04]} 37. N7f5 {[%emt 0:00:01]} a5 {[%emt 0:00:04]} 38. Rc3+ {[%emt 0:00:20]} Kb4 {[%emt 0:00:07]} 39. Nd4 {[%emt 0:00:01]} Re1 {[%emt 0:00:08] and ...Rb1+ would now be decisive} 40. Ngf5 $2 {[%emt 0:00:11] [#]} (40. Rc7 $14 {stays ahead.}) 40... Bxf5 $2 {[%emt 0:00:04]} (40... Rb1+ $1 $19 41. Kxb1 Kxc3) 41. Nxf5 $19 {[%emt 0:00:01][%mdl 4096] Endgame KRN-KR} Re2+ {[%emt 0:00:01]} 42. Rc2 {[%emt 0:00:01]} Rxc2+ {[%emt 0:00:03]} (42... Re4 $11) 43. Kxc2 $11 {[%emt 0:00:01] KN-KP} b5 $2 {[%emt 0:00:01]} (43... Kc5 44. Ng7 Kd6 45. Nxh5 Ke5) 44. Ng3 {[%emt 0:00:15]} d4 {[%emt 0:00:01][%cal Bd5d4,Bd4d3][%mdl 32]} 45. Nxh5 {[%emt 0:00:03]} d3+ {[%emt 0:00:00]} 46. Kd2 {[%emt 0:00:03] and Nf4 should not be overlooked} Kxb3 $2 {[%emt 0:00:04] [#]} (46... Kc5 $18 47. Nf4 (47. Kxd3 Kd6 $18) 47... Kd6 (47... Kb4 $2 48. Nxd3+ Kxb3 49. h5 $18)) 47. Nf4 $1 {[%emt 0:00:01][%cal Oh4h5]} a4 {[%emt 0:00:00][%cal Ba5a4,Ba4a3][%mdl 32]} 48. h5 {[%emt 0:00:02]} a3 {[%emt 0:00:01]} 49. Nxd3 {[%emt 0:00:00]} Kc4 {[%emt 0:00:04]} 50. Nc1 {[%emt 0:00:02] Threatening mate with h6.} b4 {[%emt 0:00:01] Weighted Error Value: White=0.33/Black=0.61  Loses game:     	White=1     	Black=1      Missed win:     	White=1     	Black=1      Mistake:       	White=4     	Black=6      Inaccurate:     	White=2     	Black=4      OK:         	White=14    	Black=9      Best:        	White=2     	Black=2      Strong:       	White=2     	Black=1} 1-0